fUSD/lending_fUSD_20250818
["ID","MTS","AMOUNT","RATE_DAILY","PERIOD"]
[380052194,1755508247338,-207.0,0.00014246,2]
[380052195,1755508247347,-207.0,0.00014246,2]
[380052196,1755508247355,-207.0,0.00014246,2]
[380052197,1755508247365,-207.0,0.00014246,2]
[380052198,1755508247373,-207.0,0.00014246,2]
[380052199,1755508247382,-207.0,0.00014246,2]
[380052200,1755508247392,-207.0,0.00014246,2]
[380052201,1755508247402,-207.0,0.00014246,2]
[380052202,1755508247412,-207.0,0.00014246,2]
[380052203,1755508247424,-207.0,0.00014246,2]
[380052204,1755508247434,-213.0,0.00014246,2]
[380052205,1755508247445,-213.0,0.00014246,2]
[380052206,1755508247455,-213.0,0.00014246,2]
[380052207,1755508247464,-213.0,0.00014246,2]
[380052208,1755508247473,-213.0,0.00014246,2]
[380052209,1755508247482,-213.0,0.00014246,2]
[380052210,1755508247491,-213.0,0.00014246,2]
[380052211,1755508247500,-577.0,0.00014246,2]
[380052212,1755508247510,-577.0,0.00014246,2]
[380052213,1755508247519,-577.0,0.00014246,2]
[380052214,1755508247528,-577.0,0.00014246,2]
[380052215,1755508247537,-577.0,0.00014246,2]
[380052216,1755508247546,-577.0,0.00014246,2]
[380052217,1755508247555,-577.0,0.00014246,2]
[380052218,1755508247564,-577.0,0.00014246,2]
[380052219,1755508247573,-577.0,0.00014246,2]
[380052220,1755508247583,-577.0,0.00014246,2]
[380052221,1755508247592,-577.0,0.00014246,2]
[380052222,1755508247601,-577.0,0.00014246,2]
[380052223,1755508247610,-577.0,0.00014246,2]
[380052224,1755508247619,-577.0,0.00014246,2]
[380052225,1755508247628,-577.0,0.00014246,2]
[380052226,1755508247638,-577.0,0.00014246,2]
[380052227,1755508247647,-577.0,0.00014246,2]
[380052228,1755508247657,-577.0,0.00014246,2]
[380052229,1755508247666,-577.0,0.00014246,2]
[380052230,1755508247675,-202.0,0.00014246,2]
[380052231,1755508247684,-202.0,0.00014246,2]
[380052232,1755508247693,-202.0,0.00014246,2]
[380052233,1755508247703,-1000.0,0.00014247,2]
[380052234,1755508247712,-1000.0,0.00014247,2]
[380052235,1755508247722,-446.00703754,0.00014247,2]
[380052236,1755508247731,-1000.0,0.00014247,2]
[380052237,1755508247741,-1000.0,0.00014247,2]
[380052238,1755508247751,-293.74764896,0.00014247,2]
[380052239,1755508247761,-1000.0,0.00014247,2]
[380052240,1755508247771,-252.68847802,0.00014247,2]
[380052241,1755508247781,-1000.0,0.00014247,2]
[380052242,1755508247791,-160.01205593,0.00014247,2]
[380052243,1755508247800,-1000.0,0.00014247,2]
[380052244,1755508247810,-413.73979446,0.00014247,2]
[380052245,1755508247819,-1000.0,0.00014247,2]
[380052246,1755508247829,-1000.0,0.00014247,2]
[380052247,1755508247838,-1000.0,0.00014247,2]
[380052248,1755508247849,-1000.0,0.00014247,2]
[380052249,1755508247859,-1000.0,0.00014247,2]
[380052250,1755508247869,-1000.0,0.00014247,2]
[380052251,1755508247878,-1000.0,0.00014247,2]
[380052252,1755508247887,-1000.0,0.00014247,2]
[380052253,1755508247897,-300.0,0.00014247,2]
[380052254,1755508247907,-1252.0,0.00014248,2]
[380052255,1755508247916,-4609.0,0.00014249,2]
[380052256,1755508247926,-1152.0,0.00014249,2]
[380052257,1755508247935,-1000.0,0.00014255,2]
[380052258,1755508247944,-500.0,0.00014262,2]
[380052259,1755508247953,-687.0,0.00014262,2]
[380052260,1755508247962,-1000.0,0.00014268,2]
[380052261,1755508247972,-200.0,0.00014273,2]
[380052262,1755508247981,-150.0,0.0001428,2]
[380052263,1755508247991,-1204.0,0.00014281,2]
[380052264,1755508248000,-455.0,0.00014281,2]
[380052265,1755508248010,-969.0,0.00014281,2]
[380052266,1755508248020,-1618.0,0.00014281,2]
[380052267,1755508248030,-459.0,0.00014281,2]
[380052268,1755508248039,-666.0,0.00014299,2]
[380052269,1755508248049,-673.83931652,0.00014299,2]
[380052270,1755508248058,-50000.0,0.000143,2]
[380052271,1755508248068,-436864.39,0.000143,2]
[380052272,1755508248077,-41886.0,0.000143,2]
[380052273,1755508248087,-169.93359055,0.00014301,3]
[380052274,1755508248096,-3088.49303105,0.0001431,2]
[380052275,1755508248105,-1000.0,0.00014325,2]
[380052276,1755508248114,-150.0,0.00014328,2]
[380052277,1755508248123,-150.0,0.00014329,2]
[380052278,1755508248133,-150.0,0.0001433,2]
[380052279,1755508248142,-1139.52211488,0.00014331,2]
[380052280,1755508248151,-1000.0,0.00014331,2]
[380052281,1755508248161,-1004.88603016,0.00014331,2]
[380052282,1755508248170,-1000.0,0.00014331,2]
[380052283,1755508248179,-247.06437807,0.00014331,2]
[380052284,1755508248188,-531.74480632,0.00014331,2]
[380052285,1755508248197,-1000.0,0.00014331,2]
[380052286,1755508248207,-1000.0,0.00014331,2]
[380052287,1755508248217,-1000.0,0.00014331,2]
[380052288,1755508248227,-1000.0,0.00014331,2]
[380052289,1755508248240,-1000.0,0.00014331,2]
[380052290,1755508248249,-160.06214813,0.00014331,2]
[380052291,1755508248259,-1000.0,0.00014331,2]
[380052292,1755508248268,-1000.0,0.00014331,2]
[380052293,1755508248278,-161.61909858,0.00014331,2]
[380052294,1755508248287,-1000.0,0.00014331,2]
[380052295,1755508248296,-1000.0,0.00014331,2]
[380052296,1755508248305,-3500.0,0.0001436,2]
[380052297,1755508248315,-264.16347219,0.0001436,2]
[380052298,1755508248325,-3500.0,0.0001436,2]
[380052299,1755508248334,-3500.0,0.0001436,2]
[380052300,1755508248344,-150.0,0.00014367,2]
[380052301,1755508248354,-477.0,0.00014384,2]
[380052302,1755508248363,-4393.62,0.00014384,2]
[380052303,1755508248372,-150.0,0.00014401,2]
[380052304,1755508248382,-200.0,0.00014416,2]
[380052305,1755508248391,-150.0,0.00014427,2]
[380052306,1755508248401,-1000.0,0.00014453,2]
[380052307,1755508248409,-150.0,0.00014481,2]
[380052308,1755508248419,-151.0,0.00014506,2]
[380052309,1755508248428,-200.0,0.00014507,7]
[380052310,1755508248438,-2500.0,0.00014517,3]
[380052311,1755508248448,-500.0,0.00014517,2]
[380052312,1755508248457,-706.0,0.00014517,2]
[380052313,1755508248466,-500.0,0.00014517,2]
[380052314,1755508248476,-500.0,0.00014517,2]
[380052315,1755508248484,-500.0,0.00014517,2]
[380052316,1755508248493,-500.0,0.00014517,2]
[380052317,1755508248502,-500.0,0.00014517,2]
[380052318,1755508248512,-500.0,0.00014517,2]
[380052319,1755508248521,-500.0,0.00014517,2]
[380052320,1755508248530,-500.0,0.00014517,2]
[380052321,1755508248539,-500.0,0.00014517,2]
[380052322,1755508248548,-500.0,0.00014517,2]
[380052323,1755508248557,-500.0,0.00014517,2]
[380052324,1755508248567,-500.0,0.00014517,2]
[380052325,1755508248576,-500.0,0.00014517,2]
[380052326,1755508248586,-500.0,0.00014517,2]
[380052327,1755508248597,-500.0,0.00014517,2]
[380052328,1755508248606,-500.0,0.00014517,2]
[380052329,1755508248616,-500.0,0.00014517,2]
[380052330,1755508248625,-500.0,0.00014517,2]
[380052331,1755508248634,-500.0,0.00014517,2]
[380052332,1755508248643,-500.0,0.00014517,2]
[380052333,1755508248652,-500.0,0.00014517,2]
[380052334,1755508248661,-500.0,0.00014517,2]
[380052335,1755508248670,-500.0,0.00014517,2]
[380052336,1755508248679,-500.0,0.00014517,2]
[380052337,1755508248688,-500.0,0.00014517,2]
[380052338,1755508248697,-500.0,0.00014517,2]
[380052339,1755508248707,-500.0,0.00014517,2]
[380052340,1755508248717,-500.0,0.00014517,2]
[380052341,1755508248728,-500.0,0.00014517,2]
[380052342,1755508248737,-500.0,0.00014517,2]
[380052343,1755508248747,-500.0,0.00014517,2]
[380052344,1755508248756,-500.0,0.00014517,2]
[380052345,1755508248766,-500.0,0.00014517,2]
[380052346,1755508248776,-500.0,0.00014517,2]
[380052347,1755508248785,-500.0,0.00014517,2]
[380052348,1755508248795,-500.0,0.00014517,2]
[380052349,1755508248930,-500.0,0.00014517,2]
[380052350,1755508248946,-500.0,0.00014517,2]
[380052351,1755508248956,-500.0,0.00014517,2]
[380052352,1755508248966,-500.0,0.00014517,2]
[380052353,1755508248976,-500.0,0.00014517,2]
[380052354,1755508248987,-500.0,0.00014517,2]
[380052355,1755508248997,-500.0,0.00014517,2]
[380052356,1755508249008,-500.0,0.00014517,2]
[380052357,1755508249018,-500.0,0.00014517,2]
[380052358,1755508249027,-500.0,0.00014517,2]
[380052359,1755508249037,-500.0,0.00014517,2]
[380052360,1755508249047,-500.0,0.00014517,2]
[380052361,1755508249056,-500.0,0.00014517,2]
[380052362,1755508249066,-500.0,0.00014517,2]
[380052363,1755508249076,-500.0,0.00014517,2]
[380052364,1755508249086,-500.0,0.00014517,2]
[380052365,1755508249096,-500.0,0.00014517,2]
[380052366,1755508249106,-500.0,0.00014517,2]
[380052367,1755508249116,-500.0,0.00014517,2]
[380052368,1755508249125,-500.0,0.00014517,2]
[380052369,1755508249135,-500.0,0.00014517,2]
[380052370,1755508249145,-500.0,0.00014517,2]
[380052371,1755508249155,-500.0,0.00014517,2]
[380052372,1755508249165,-500.0,0.00014517,2]
[380052373,1755508249175,-500.0,0.00014517,2]
[380052374,1755508249184,-500.0,0.00014517,2]
[380052375,1755508249194,-500.0,0.00014517,2]
[380052376,1755508249205,-500.0,0.00014517,2]
[380052377,1755508249214,-500.0,0.00014517,2]
[380052378,1755508249224,-500.0,0.00014517,2]
[380052379,1755508249238,-500.0,0.00014517,2]
[380052380,1755508249248,-500.0,0.00014517,2]
[380052381,1755508249258,-500.0,0.00014517,2]
[380052382,1755508249268,-500.0,0.00014517,2]
[380052383,1755508249278,-500.0,0.00014517,2]
[380052384,1755508249288,-500.0,0.00014517,2]
[380052385,1755508249298,-936.0,0.00014517,2]
[380052386,1755508249308,-500.0,0.00014517,2]
[380052387,1755508249318,-500.0,0.00014517,2]
[380052388,1755508249328,-500.0,0.00014517,2]
[380052389,1755508249339,-500.0,0.00014517,2]
[380052390,1755508249348,-500.0,0.00014517,2]
[380052391,1755508249358,-500.0,0.00014517,2]
[380052392,1755508249367,-500.0,0.00014517,2]
[380052393,1755508249377,-777.0,0.00014517,2]
[380052394,1755508249386,-500.0,0.00014517,2]
[380052395,1755508249396,-500.0,0.00014517,2]
[380052396,1755508249406,-500.0,0.00014517,2]
[380052397,1755508249416,-528.0,0.00014517,2]
[380052398,1755508249426,-400.0,0.0001452,2]
[380052399,1755508249435,-250.47279,0.0001452,2]
[380052400,1755508249445,-250.47279,0.0001452,2]
[380052401,1755508249455,-433.34386107,0.00014521,2]
[380052402,1755508249465,-2500.0,0.00014526,3]
[380052403,1755508249474,-2500.0,0.00014534,3]
[380052404,1755508249484,-403.43948528,0.00014536,2]
[380052405,1755508249493,-687.0,0.00014536,2]
[380052406,1755508249503,-2500.0,0.00014543,3]
[380052407,1755508249512,-41756.8597117,0.00014546,2]
[380052408,1755508249522,-331.76,0.00014546,2]
[380052409,1755508249531,-2500.0,0.00014552,3]
[380052410,1755508249541,-1204.0,0.00014555,2]
[380052411,1755508249551,-455.0,0.00014555,2]
[380052412,1755508249560,-969.0,0.00014555,2]
[380052413,1755508249570,-1618.0,0.00014555,2]
[380052414,1755508249579,-459.0,0.00014555,2]
[380052415,1755508249588,-200.0,0.0001456,2]
[380052416,1755508249598,-2500.0,0.00014561,3]
[380052417,1755508249607,-2500.0,0.0001457,3]
[380052418,1755508249617,-150.0,0.00014578,2]
[380052419,1755508249626,-2500.0,0.00014578,3]
[380052420,1755508249636,-2500.0,0.00014587,3]
[380052421,1755508249645,-2500.0,0.00014596,3]
[380052422,1755508249655,-120378.72,0.000146,2]
[380052423,1755508249667,-1139.92,0.000146,7]
[380052424,1755508249677,-70000.0,0.000146,2]
[380052425,1755508249687,-150.0,0.000146,2]
[380052426,1755508249697,-2500.0,0.00014605,3]
[380052427,1755508249707,-2500.0,0.00014614,3]
[380052428,1755508249717,-150.0,0.00014617,2]
[380052429,1755508249726,-1000.0,0.00014618,2]
[380052430,1755508249737,-150.0,0.00014619,2]
[380052431,1755508249749,-2500.0,0.00014622,3]
[380052432,1755508249761,-2500.0,0.00014631,3]
[380052433,1755508249771,-2500.0,0.0001464,3]
[380052434,1755508249781,-150.0,0.00014643,2]
[380052435,1755508249791,-150.0,0.00014644,2]
[380052436,1755508249801,-2500.0,0.00014649,3]
[380052437,1755508249811,-150.0,0.00014651,2]
[380052438,1755508249825,-2500.0,0.00014658,3]
[380052439,1755508249835,-150.0,0.00014661,2]
[380052440,1755508249844,-2500.0,0.00014666,3]
[380052441,1755508249853,-150.0,0.00014673,2]
[380052442,1755508249863,-2500.0,0.00014675,3]
[380052443,1755508249872,-30000.0,0.0001468,2]
[380052444,1755508249882,-58137.6801027,0.0001468,2]
[380052445,1755508249891,-2500.0,0.00014684,3]
[380052446,1755508249900,-150.0,0.00014685,2]
[380052447,1755508249910,-2500.0,0.00014693,3]
[380052448,1755508249919,-150.0,0.00014698,2]
[380052449,1755508249928,-2500.0,0.00014702,3]
[380052450,1755508249939,-2500.0,0.0001471,3]
[380052451,1755508249949,-2500.0,0.00014719,3]
[380052452,1755508249960,-265.92,0.00014724,2]
[380052453,1755508249969,-2500.0,0.00014728,3]
[380052454,1755508249979,-150.0,0.00014732,2]
[380052455,1755508249988,-2500.0,0.00014737,3]
[380052456,1755508249998,-2500.0,0.00014746,3]
[380052457,1755508250007,-150.0,0.00014754,2]
[380052458,1755508250017,-2500.0,0.00014754,3]
[380052459,1755508250027,-150.0,0.0001476,2]
[380052460,1755508250036,-2500.0,0.00014763,3]
[380052461,1755508250046,-150.0,0.00014765,2]
[380052462,1755508250056,-150.0,0.00014768,2]
[380052463,1755508250067,-150.0,0.00014771,2]
[380052464,1755508250076,-2500.0,0.00014772,3]
[380052465,1755508250085,-666.0,0.00014779,2]
[380052466,1755508250095,-2500.0,0.00014781,3]
[380052467,1755508250104,-150.0,0.00014781,2]
[380052468,1755508250113,-1000.0,0.00014787,2]
[380052469,1755508250123,-2500.0,0.0001479,3]
[380052470,1755508250135,-150.0,0.00014793,2]
[380052471,1755508250145,-250.47279,0.00014794,2]
[380052472,1755508250156,-250.47279,0.00014794,2]
[380052473,1755508250167,-250.47279,0.00014794,2]
[380052474,1755508250177,-250.47279,0.00014794,2]
[380052475,1755508250186,-250.47279,0.00014794,2]
[380052476,1755508250195,-250.47279,0.00014794,2]
[380052477,1755508250206,-250.47279,0.00014794,2]
[380052478,1755508250215,-250.47279,0.00014794,2]
[380052479,1755508250227,-250.47279,0.00014794,2]
[380052480,1755508250240,-250.47279,0.00014794,2]
[380052481,1755508250250,-250.47279,0.00014794,2]
[380052482,1755508250259,-250.472794,0.00014794,2]
[380052483,1755508250268,-165.94,0.00014794,2]
[380052484,1755508250279,-165.94,0.00014794,2]
[380052485,1755508250288,-165.94,0.00014794,2]
[380052486,1755508250297,-165.94,0.00014794,2]
[380052487,1755508250308,-966.67801082,0.00014795,2]
[380052488,1755508250317,-1500.0,0.00014795,2]
[380052489,1755508250327,-675.97838274,0.00014795,2]
[380052490,1755508250336,-1500.0,0.00014795,2]
[380052491,1755508250346,-1500.0,0.00014795,2]
[380052492,1755508250355,-1500.0,0.00014795,2]
[380052493,1755508250365,-1500.0,0.00014795,2]
[380052494,1755508250374,-1500.0,0.00014795,2]
[380052495,1755508250384,-1500.0,0.00014795,2]
[380052496,1755508250393,-1500.0,0.00014795,2]
[380052497,1755508250402,-644.90383324,0.00014795,2]
[380052498,1755508250411,-1500.0,0.00014795,2]
[380052499,1755508250421,-941.61882533,0.00014795,2]
[380052500,1755508250431,-1500.0,0.00014795,2]
[380052501,1755508250441,-1500.0,0.00014795,2]
[380052502,1755508250451,-43277.24830794,0.000148,2]
[380052503,1755508253051,-500.0,0.00010993,2]
[380052504,1755508253061,-500.0,0.00011267,2]
[380052505,1755508253071,-500.0,0.00011541,2]
[380052506,1755508253081,-500.0,0.00011815,2]
[380052507,1755508253091,-500.0,0.00012089,2]
[380052508,1755508253100,-246.43321828,0.00012363,2]
[380052509,1755508253109,-500.0,0.00013665,2]
[380052510,1755508253119,-500.0,0.00013665,2]
[380052511,1755508253129,-500.0,0.00013665,2]
[380052512,1755508253139,-500.0,0.00013665,2]
[380052513,1755508253148,-500.0,0.00013665,2]
[380052514,1755508253157,-545.05950833,0.000137,2]
[380052515,1755508253385,-7.73049167,0.000137,2]
[380052516,1755508253395,-552.79,0.000137,2]
[380052517,1755508253404,-450.70713413,0.000137,2]
[380052518,1755508253479,-288.42216911,0.00011559,2]
[380052519,1755508253488,-33.02783089,0.00013665,2]
[380052520,1755508253519,-466.97216911,0.00013665,2]
[380052521,1755508253528,-102.08286587,0.000137,2]
[380052522,1755508253537,-552.79,0.000137,2]
[380052523,1755508253546,-16722.75169206,0.000148,2]
[380052524,1755508253555,-1500.0,0.00014803,2]
[380052525,1755508253565,-150.0,0.00014813,2]
[380052526,1755508253574,-5800.0,0.00014815,2]
[380052527,1755508253583,-150.0,0.00014818,2]
[380052528,1755508253592,-1000.0,0.00014826,2]
[380052529,1755508253601,-1204.0,0.00014829,2]
[380052530,1755508253611,-455.0,0.00014829,2]
[380052531,1755508253620,-969.0,0.00014829,2]
[380052532,1755508253633,-1618.0,0.00014829,2]
[380052533,1755508253642,-459.0,0.00014829,2]
[380052534,1755508253651,-1000.0,0.00014842,2]
[380052535,1755508253660,-150.0,0.00014843,2]
[380052536,1755508253669,-150.0,0.00014846,2]
[380052537,1755508253678,-150.0,0.00014855,2]
[380052538,1755508253687,-150.0,0.00014863,2]
[380052539,1755508253696,-1500.0,0.00014873,2]
[380052540,1755508253705,-150.0,0.00014878,2]
[380052541,1755508253714,-150.0,0.00014879,2]
[380052542,1755508253723,-1500.0,0.00014879,2]
[380052543,1755508253733,-451.20220207,0.00014879,2]
[380052544,1755508253742,-1500.0,0.00014879,2]
[380052545,1755508253751,-1500.0,0.00014879,2]
[380052546,1755508253760,-1457.61746569,0.00014879,2]
[380052547,1755508253770,-1500.0,0.00014879,2]
[380052548,1755508253779,-1500.0,0.00014879,2]
[380052549,1755508253788,-1500.0,0.00014879,2]
[380052550,1755508253797,-1500.0,0.00014879,2]
[380052551,1755508253806,-1500.0,0.00014879,2]
[380052552,1755508253815,-1500.0,0.00014879,2]
[380052553,1755508253824,-151.0,0.00014887,2]
[380052554,1755508253833,-151.0,0.00014887,2]
[380052555,1755508253842,-150.0,0.00014897,2]
[380052556,1755508253852,-2000.0,0.00014899,2]
[380052557,1755508253862,-1000.0,0.00014899,2]
[380052558,1755508253871,-2000.0,0.00014899,2]
[380052559,1755508253880,-221.74105506,0.000149,2]
[380052560,1755508253890,-221.74105506,0.000149,2]
[380052561,1755508253899,-221.74105506,0.000149,2]
[380052562,1755508253908,-2235.0,0.00014907,2]
[380052563,1755508253917,-4151.0,0.00014907,2]
[380052564,1755508253927,-717.0,0.00014907,2]
[380052565,1755508253936,-6090.0,0.00014907,2]
[380052566,1755508253945,-4000.0,0.00014908,2]
[380052567,1755508253954,-2313.96935879,0.00014908,2]
[380052568,1755508253964,-4000.0,0.00014908,2]
[380052569,1755508253973,-150.0,0.00014909,2]
[380052570,1755508253982,-150.0,0.00014911,2]
[380052571,1755508253992,-327.90692021,0.00014923,2]
[380052572,1755508254002,-150.0,0.00014933,2]
[380052573,1755508254011,-150.0,0.00014941,2]
[380052574,1755508254021,-150.0,0.00014947,2]
[380052575,1755508254030,-150.0,0.00014949,2]
[380052576,1755508254041,-150.0,0.00014954,2]
[380052577,1755508254051,-150.0,0.00014954,2]
[380052578,1755508254060,-150.0,0.00014956,2]
[380052579,1755508254069,-150.0,0.00014963,2]
[380052580,1755508254079,-297.62,0.00014964,2]
[380052581,1755508254088,-500.0,0.0001497,2]
[380052582,1755508254097,-1000.0,0.0001497,2]
[380052583,1755508254106,-150.0,0.00014972,2]
[380052584,1755508254115,-150.0,0.00014976,2]
[380052585,1755508254124,-666.0,0.00014979,2]
[380052586,1755508254134,-7411.32033338,0.0001498,2]
[380052587,1755508254146,-51857.2367611,0.0001498,2]
[380052588,1755508254255,-1707.05999995,0.0001498,2]
[380052589,1755508254655,500.0,9.731e-05,2]
[380052590,1755508255854,-181.2652448,9.731e-05,2]
[380052591,1755508255863,-175.68700881,9.731e-05,2]
[380052592,1755508255873,-91.85703286,9.731e-05,2]
[380052593,1755508256013,-211.66073529,9.731e-05,2]
[380052594,1755508256024,-595.85990375,0.00011907,2]
[380052595,1755508256131,-6074.60850713,0.00011907,2]
[380052596,1755508257783,-707.83201153,0.00010959,2]
[380052597,1755508257831,-192.16798847,0.00010959,2]
[380052598,1755508257841,-411.1579709,0.00010959,2]
[380052599,1755508258068,-488.8420291,0.00010959,2]
[380052600,1755508258077,-675.9889504,0.00010959,2]
[380052601,1755508258101,-224.0110496,0.00010959,2]
[380052602,1755508258111,-586.3139354,0.00010959,2]
[380052603,1755508258564,500.0,9.731e-05,2]
[380052604,1755508259104,500.0,9.731e-05,2]
[380052605,1755508259142,131.28,9.731e-05,2]
[380052606,1755508267917,-119.13897379,9.731e-05,2]
[380052607,1755508267950,-534.35660016,9.731e-05,2]
[380052608,1755508267981,-159.68901069,9.731e-05,2]
[380052609,1755508271439,-20.05916928,9.731e-05,2]
[380052610,1755508278320,-148.25516456,9.731e-05,2]
[380052611,1755508300241,-89.19350312,9.731e-05,2]
[380052612,1755508322299,-25.24299376,9.731e-05,2]
[380052620,1755508483139,-169.07975534,9.729e-05,2]
[380052621,1755508483169,-247.07399372,9.729e-05,2]
[380052622,1755508483199,-179.28501286,9.729e-05,2]
[380052623,1755508511683,-27.79614656,9.729e-05,2]
[380052624,1755508512211,-46.64503283,9.729e-05,2]
[380052625,1755508557553,-52.23732595,9.729e-05,2]
[380052626,1755508557577,-45.5253481,9.729e-05,2]
[380052627,1755508576655,-196.94,9.729e-05,2]
[380052628,1755508593215,-30.22319603,9.729e-05,2]
[380052629,1755508593244,-531.76425977,9.729e-05,2]
[380052630,1755508593387,-76.0250884,9.728e-05,2]
[380052631,1755508600743,-96.9267072,9.728e-05,2]
[380052632,1755508600774,-76.0250884,9.729e-05,2]
[380052633,1755508600801,-1144.4534318,9.729e-05,2]
[380052634,1755508601082,-1402.25381901,9.729e-05,2]
[380052635,1755508614392,954.54,0.00024,120]
[380052636,1755508617266,-152.02,9.728e-05,2]
[380052637,1755508634769,-375.15801734,9.728e-05,2]
[380052638,1755508651850,-5.82198266,9.728e-05,2]
[380052639,1755508651942,-282.35423013,9.728e-05,2]
[380052640,1755508669559,-150.64468179,9.728e-05,2]
[380052642,1755508688059,-67.00108808,9.728e-05,2]
[380052643,1755508688632,-15.99782384,9.728e-05,2]
[380052645,1755508885737,4091.0,0.00024,120]
[380052664,1755509300498,1377.8959795,0.00012,30]
[380052680,1755509431415,-516.84350312,9.722e-05,2]
[380052682,1755509431425,-125.15899732,9.722e-05,2]
[380052683,1755509431472,-301.99884828,9.722e-05,2]
[380052684,1755509431482,-240.2183963,0.00010686,2]
[380052685,1755509431494,-1917.29626969,0.00010686,2]
[380052686,1755509431506,-1701.05016392,0.00010686,2]
[380052687,1755509431692,-169.03298457,0.00010686,2]
[380052688,1755509431702,-300.0,0.00010694,2]
[380052689,1755509431711,-300.0,0.00010695,2]
[380052690,1755509431720,-230.96701543,0.00010695,2]
[380052691,1755509431731,-19.03298457,0.00010695,2]
[380052692,1755509431740,-300.0,0.00010696,2]
[380052693,1755509431749,-1200.0,0.00010697,2]
[380052694,1755509431760,-300.0,0.00010857,2]
[380052695,1755509431769,-300.0,0.00010857,2]
[380052696,1755509431778,-25.81835969,0.00010858,2]
[380052697,1755509431805,-1805.04546139,0.00010858,2]
[380052699,1755509431814,-1830.86382108,0.0001089,2]
[380052701,1755509431823,-2331.24031731,0.000109,2]
[380052703,1755509431834,-3711.21868269,0.000109,2]
[380052705,1755509431844,-184.94708754,0.000109,2]
[380052707,1755509431853,-150.0,0.00010958,2]
[380052709,1755509431862,-900.0,0.00010959,2]
[380052711,1755509431871,-900.0,0.00010959,2]
[380052713,1755509431880,-900.0,0.00010959,2]
[380052715,1755509431889,-900.0,0.00010959,2]
[380052716,1755509431899,-900.0,0.00010959,2]
[380052718,1755509431908,-900.0,0.00010959,2]
[380052719,1755509431917,-900.0,0.00010959,2]
[380052721,1755509431926,-900.0,0.00010959,2]
[380052722,1755509431936,-500.0,0.00010973,2]
[380052723,1755509431945,-500.0,0.00010973,2]
[380052724,1755509431954,-9533.07533827,0.0001099,2]
[380052725,1755509431963,-150.0,0.00010999,2]
[380052726,1755509431974,-190771.26081982,0.00011,2]
[380052727,1755509431985,-139085.39306094,0.00011,2]
[380052728,1755509432137,-4023.04648129,0.00011,2]
[380052729,1755509432254,-404.72976697,0.00011,2]
[380052730,1755509432266,-1800.0,0.00011,2]
[380052731,1755509432283,-5073.6966966,0.00011,2]
[380052732,1755509432388,-601.54859924,0.00011,2]
[380052733,1755509438686,-10636.40475227,0.00011,2]
[380052734,1755509438730,-519.28351839,0.00011,2]
[380052735,1755509438742,-721.25990512,0.00011,2]
[380052736,1755509438802,-348.80003017,0.00011,2]
[380052737,1755509438813,-1114.64330108,0.00011,2]
[380052738,1755509438825,-1064.95400952,0.00011,2]
[380052739,1755509438836,-519.07829482,0.00011,2]
[380052740,1755509438847,-1733.40809265,0.00011,2]
[380052741,1755509438905,-499.86178415,0.00011,2]
[380052742,1755509438916,-1345.53390888,0.00011,2]
[380052743,1755509438942,-965.16039131,0.00011,2]
[380052869,1755509440113,-184.09011362,0.00010594,2]
[380052871,1755509440122,-327.57451478,0.00011,2]
[380052922,1755509440683,-544.22581881,0.00011,2]
[380052928,1755509440728,-609.9173999,0.00011,2]